bitfinex-derivatives/quotes_BTCF0:USTF0_20240929
["timestamp","ask_amount","ask_price","bid_price","bid_amount"]
[1727647963411,0.076069,65713.0,65686.0,0.18228359]
[1727647963412,0.076076,65707.0,65701.0,0.076083]
[1727647963613,0.3608,65707.0,65693.0,0.3608]
[1727647963808,0.3608,65707.0,65706.0,0.076077]
[1727647964005,0.07607,65712.0,65706.0,0.076077]
[1727647964403,0.07607,65712.0,65701.0,0.3608]
[1727647964610,0.3608,65713.0,65710.0,0.076072]
[1727647965210,0.3608,65713.0,65711.0,0.076071]
[1727647966506,0.076067,65715.0,65711.0,0.076071]
[1727647967014,0.076067,65715.0,65708.0,0.40612564]
[1727647967206,0.3608,65718.0,65707.0,0.04532564]
[1727647967514,0.18,65710.0,65698.0,0.04532564]
[1727647967711,0.18,65704.0,65697.0,0.04532564]
[1727647967911,0.076076,65708.0,65702.0,0.12140764]
[1727647968116,0.076076,65708.0,65702.0,0.076082]
[1727647968322,0.076076,65707.0,65702.0,0.076082]
[1727647968514,0.54156,65712.0,65702.0,0.076082]
[1727647968515,0.3608,65705.0,65702.0,0.076082]
[1727647968708,0.3608,65705.0,65698.0,0.04532564]
[1727647968709,0.32273226,65705.0,65698.0,0.04532564]
[1727647968910,0.076081,65703.0,65697.0,0.04532564]
[1727647969109,0.3608,65712.0,65697.0,0.04532564]
[1727647969110,0.076076,65707.0,65697.0,0.04532564]
[1727647969342,0.076076,65707.0,65701.0,0.076082]
[1727647969521,0.076076,65707.0,65695.0,0.3608]
[1727647969522,0.076076,65707.0,65699.0,0.04532564]
[1727647969721,0.076074,65709.0,65699.0,0.04532564]
[1727647969912,0.076074,65709.0,65704.0,0.076079]
[1727647970233,0.076075,65708.0,65704.0,0.076079]
[1727647970425,0.076075,65708.0,65704.0,0.436879]
[1727647970718,0.076075,65708.0,65707.0,0.04532564]
[1727647970918,0.076077,65706.0,65704.0,0.436879]
[1727647971126,0.076077,65707.0,65704.0,0.3608]
[1727647971609,0.076077,65707.0,65704.0,0.436879]
[1727647972219,0.3608,65712.0,65704.0,0.3608]
[1727647972522,0.0035,65717.0,65711.0,0.5408]
[1727647972727,0.3608,65719.0,65714.0,0.076068]
[1727647973019,0.3608,65719.0,65715.0,0.076067]
[1727647973320,0.3608,65719.0,65718.0,0.12143283]
[1727647973514,0.3608,65719.0,65718.0,0.076063]
[1727647974409,0.3608,65726.0,65718.0,0.3608]
[1727647974718,0.436854,65726.0,65725.0,0.04542134]
[1727647975423,0.076056,65725.0,65720.0,0.07529095]
[1727647975616,0.07606,65721.0,65720.0,0.07529095]
[1727647975918,0.076062,65719.0,65715.0,0.07529095]
[1727647976124,0.076062,65719.0,65714.0,0.15135895]
[1727647976125,0.18,65717.0,65714.0,0.15135895]
[1727647976324,0.18,65717.0,65714.0,0.076068]
[1727647976621,0.076065,65716.0,65715.0,0.07529095]
[1727647976820,0.18,65717.0,65712.0,0.07529095]
[1727647977123,0.3608,65719.0,65711.0,0.3608]
[1727647977124,0.07607,65712.0,65711.0,0.3608]
[1727647977630,0.076073,65710.0,65708.0,0.07529095]
[1727647977925,0.076074,65709.0,65707.0,0.07757379]
[1727647978216,0.3608,65712.0,65707.0,0.07757379]
[1727647978423,0.3608,65712.0,65707.0,0.15364979]
[1727647978623,0.3608,65712.0,65707.0,0.07835884]
[1727647978820,0.076075,65708.0,65707.0,0.00228284]
[1727647981414,0.3608,65712.0,65707.0,0.00228284]
[1727647981616,0.36506,65719.0,65718.0,0.076063]
[1727647981816,0.3608,65719.0,65718.0,0.076063]
[1727647982233,0.3608,65725.0,65712.0,0.0653]
[1727647982416,0.3608,65725.0,65723.0,0.076057]
[1727647982619,0.3608,65725.0,65724.0,0.076056]
[1727647984127,0.436855,65725.0,65712.0,0.0653]
[1727647984330,0.076058,65723.0,65717.0,0.076063]
[1727647984621,0.07606,65721.0,65717.0,0.076063]
[1727647984824,0.3608,65725.0,65711.0,0.3608]
[1727647984825,0.18,65719.0,65711.0,0.3608]
[1727647985014,0.256069,65714.0,65711.0,0.3608]
[1727647986333,0.256069,65714.0,65711.0,0.43687]
[1727647986520,0.076069,65714.0,65712.0,0.07607]
[1727647987117,0.076069,65714.0,65711.0,0.3608]
[1727647987118,0.436862,65719.0,65713.0,0.076069]
[1727647987326,0.076065,65717.0,65714.0,0.076067]
[1727647987519,0.076067,65715.0,65714.0,0.076067]
[1727647990614,0.18,65720.0,65712.0,0.04551078]
[1727647990818,0.076068,65714.0,65712.0,0.04551078]
[1727647991027,0.18,65720.0,65712.0,0.04551078]
[1727647991226,0.076068,65714.0,65711.0,0.40631078]
[1727647991527,0.3616,65720.0,65712.0,0.04551078]
[1727647991736,0.076064,65718.0,65715.0,0.076067]
[1727647992234,0.076064,65718.0,65717.0,0.076064]
[1727647992523,0.3608,65720.0,65715.0,0.04551078]
[1727647992717,0.3608,65720.0,65719.0,0.076062]
[1727647992920,0.00228359,65727.0,65719.0,0.5408]
[1727647993135,0.00228359,65727.0,65720.0,0.0313]
[1727647993326,0.00228359,65727.0,65726.0,0.076054]
[1727647993817,0.436839,65739.0,65726.0,0.076054]
[1727647993818,0.3608,65742.0,65726.0,0.3608]
[1727647994018,0.0035,65752.0,65741.0,0.5408]
[1727647994219,0.0035,65752.0,65751.0,0.5408]
[1727647994623,0.468902,65772.0,65754.0,0.076021]
[1727647994624,0.0035,65771.0,65754.0,0.076021]
[1727647994830,0.3929,65772.0,65761.0,0.3608]
[1727647995134,0.076007,65767.0,65761.0,0.3608]
[1727647995314,0.18,65765.0,65752.0,0.0035]
[1727647995518,0.18,65758.0,65751.0,0.3608]
[1727647996631,0.18,65758.0,65757.0,0.3608]
[1727647997733,0.616811,65764.0,65757.0,0.3608]
[1727647998933,0.616811,65764.0,65752.0,0.3608]
[1727647998934,0.3608,65762.0,65752.0,0.3608]
[1727647999130,0.3608,65762.0,65753.0,0.076022]
[1727648000435,0.3608,65756.0,65748.0,0.076028]
[1727648001833,0.3608,65756.0,65749.0,0.076026]
[1727648002033,0.3608,65756.0,65750.0,0.076026]
[1727648002222,0.3608,65756.0,65744.0,0.3608]
[1727648002425,0.3608,65756.0,65752.0,0.076023]
[1727648004231,0.3608,65756.0,65753.0,0.076022]
[1727648004940,0.3608,65756.0,65754.0,0.076021]
[1727648005946,0.3608,65756.0,65755.0,0.07602]
[1727648008750,0.3608,65762.0,65755.0,0.07602]
[1727648008935,0.3608,65762.0,65761.0,0.076013]
[1727648009144,0.0321,65772.0,65758.0,0.5408]
[1727648009440,0.0321,65772.0,65771.0,0.076002]
[1727648014446,0.0321,65772.0,65761.0,0.3608]
[1727648014633,0.0321,65772.0,65767.0,0.076006]
[1727648014634,0.076004,65769.0,65767.0,0.076006]
[1727648014839,0.0321,65772.0,65761.0,0.3608]
[1727648015149,0.0321,65772.0,65759.0,0.2415]
[1727648015150,0.076017,65758.0,65757.0,0.00228096]
[1727648015334,0.076021,65755.0,65742.0,0.0035]
[1727648015540,0.18,65754.0,65740.0,0.0633]
[1727648015842,0.3608,65757.0,65740.0,0.2433]
[1727648016041,0.076025,65752.0,65740.0,0.2433]
[1727648016233,0.076025,65752.0,65745.0,0.076031]
[1727648016737,0.0323,65756.0,65745.0,0.076031]
[1727648016738,0.076025,65751.0,65745.0,0.076031]
[1727648017441,0.0323,65756.0,65740.0,0.2433]
[1727648017642,0.0323,65756.0,65750.0,0.076026]
[1727648017836,0.076021,65755.0,65750.0,0.076026]
[1727648018038,0.076023,65753.0,65750.0,0.076026]
[1727648018238,0.076023,65753.0,65746.0,0.07603]
[1727648018449,0.076021,65755.0,65740.0,0.2433]
[1727648018742,0.076025,65751.0,65744.0,0.076032]
[1727648018934,0.0323,65756.0,65749.0,0.076027]
[1727648019131,0.076024,65752.0,65749.0,0.076027]
[1727648019531,0.436819,65757.0,65751.0,0.18]
[1727648019738,0.436819,65757.0,65753.0,0.076022]
[1727648020047,0.436819,65757.0,65751.0,0.18]
[1727648020048,0.076019,65757.0,65755.0,0.076019]
[1727648020343,0.0304,65764.0,65756.0,0.076019]
[1727648020344,0.076013,65762.0,65756.0,0.076019]
[1727648020647,0.076015,65760.0,65756.0,0.256019]
[1727648021038,0.076016,65759.0,65756.0,0.256019]
[1727648021237,0.0304,65764.0,65756.0,0.256019]
[1727648021443,0.076016,65759.0,65756.0,0.256019]
[1727648021844,0.076016,65759.0,65756.0,0.076019]
[1727648022548,0.0304,65764.0,65756.0,0.076019]
[1727648022769,0.10584621,65767.0,65753.0,0.3608]
[1727648022770,0.076013,65761.0,65758.0,0.076017]
[1727648022937,0.076008,65766.0,65756.0,0.18]
[1727648023139,0.03411039,65762.0,65761.0,0.076013]
[1727648023363,0.18185121,65769.0,65761.0,0.5408]
[1727648023548,0.0345334,65768.0,65761.0,0.5408]
[1727648023853,0.076005,65769.0,65767.0,0.076006]
[1727648024239,0.076005,65769.0,65767.0,0.12152161]
[1727648024647,0.076005,65768.0,65767.0,0.04551561]
[1727648024945,0.0359,65775.0,65764.0,0.13670836]
[1727648024946,0.076007,65767.0,65764.0,0.13670836]
[1727648025139,0.076007,65767.0,65765.0,0.076008]
[1727648025941,0.076008,65766.0,65765.0,0.076008]
[1727648026547,0.3608,65771.0,65763.0,0.06069836]
[1727648026757,0.3608,65771.0,65760.0,0.43609095]
[1727648026758,0.18,65764.0,65762.0,0.04550666]
[1727648026948,0.18,65764.0,65760.0,0.3608]
[1727648026949,0.18,65764.0,65760.0,0.04550666]
[1727648027144,0.076013,65761.0,65760.0,0.04550666]
[1727648027451,0.076015,65760.0,65759.0,0.04550666]
[1727648027846,0.076015,65760.0,65759.0,0.04551163]
[1727648028148,0.076015,65760.0,65759.0,0.04551126]
[1727648028453,0.54168,65764.0,65757.0,0.13671636]
[1727648028749,0.3608,65764.0,65763.0,0.076011]
[1727648030856,0.18185021,65770.0,65758.0,0.3608]
[1727648031045,0.03447654,65769.0,65758.0,0.3608]
[1727648031248,0.11048254,65768.0,65767.0,0.076006]
[1727648032257,0.03447654,65768.0,65767.0,0.076006]
[1727648032754,0.54344821,65771.0,65767.0,0.076006]
[1727648032755,0.076003,65770.0,65767.0,0.076006]
[1727648032957,0.3608,65771.0,65767.0,0.076006]
[1727648033157,0.076005,65768.0,65767.0,0.076006]
[1727648034147,0.18228176,65774.0,65767.0,0.076006]
[1727648034148,0.00228176,65774.0,65767.0,0.18]
[1727648034455,0.00228176,65774.0,65773.0,0.076]
[1727648034655,0.00228176,65774.0,65765.0,0.3608]
[1727648035252,0.00228176,65774.0,65771.0,0.076002]
[1727648035463,0.0346496,65773.0,65771.0,0.076002]
[1727648035762,0.0346496,65772.0,65771.0,0.076002]
[1727648036061,0.00228176,65774.0,65772.0,0.076001]
[1727648036249,0.0346779,65773.0,65772.0,0.076001]
[1727648036446,0.10934621,65779.0,65771.0,0.3608]
[1727648036680,0.00084,65781.0,65777.0,0.3608]
[1727648036960,0.075987,65784.0,65780.0,0.075991]
[1727648037260,0.3608,65785.0,65782.0,0.075989]
[1727648037460,0.03515352,65784.0,65782.0,0.075989]
[1727648037659,0.3608,65785.0,65782.0,0.075989]
[1727648037856,0.03517017,65784.0,65782.0,0.075989]
[1727648038160,0.3608,65785.0,65783.0,0.075987]
[1727648038457,0.0332,65788.0,65785.0,0.075985]
[1727648038458,0.109182,65788.0,65785.0,0.075985]
[1727648038651,0.03531282,65787.0,65785.0,0.075985]
[1727648038954,0.109182,65788.0,65785.0,0.075985]
[1727648039155,0.075982,65788.0,65785.0,0.075985]
[1727648039553,0.075984,65787.0,65784.0,0.3608]
[1727648040159,0.075984,65787.0,65782.0,0.075989]
[1727648040753,0.075984,65787.0,65784.0,0.3608]
[1727648042351,0.075984,65787.0,65783.0,0.075987]
[1727648043657,0.075985,65786.0,65781.0,0.3608]
[1727648043857,0.075985,65786.0,65783.0,0.075988]
[1727648045358,0.39718072,65792.0,65781.0,0.3608]
[1727648045563,0.39368072,65792.0,65781.0,0.3608]
[1727648046267,0.075979,65791.0,65781.0,0.3608]
[1727648046562,0.075986,65785.0,65781.0,0.3608]
[1727648047072,0.18,65782.0,65778.0,0.01437858]
[1727648047372,0.18,65782.0,65773.0,0.3608]
[1727648047673,0.075989,65782.0,65780.0,0.075991]
[1727648048756,0.3608,65785.0,65782.0,0.075989]
[1727648049155,0.3608,65785.0,65784.0,0.12]
[1727648049357,0.3608,65791.0,65790.0,0.07598]
[1727648049562,0.3608,65791.0,65790.0,0.19598]
[1727648051466,0.00228072,65792.0,65790.0,0.19598]
[1727648053974,0.03569349,65791.0,65790.0,0.19598]
[1727648054563,0.11167249,65791.0,65790.0,0.12]
[1727648054763,0.11167249,65791.0,65789.0,0.01464105]
[1727648054967,0.03569349,65790.0,65787.0,0.032]
[1727648055160,0.03569349,65789.0,65788.0,0.075981]
[1727648056471,0.00228072,65792.0,65787.0,0.032]
[1727648056669,0.03575751,65791.0,65790.0,0.19598]
[1727648057365,0.00228072,65792.0,65790.0,0.65198]
[1727648057575,0.0307,65802.0,65791.0,0.456]
[1727648057576,0.10584621,65802.0,65791.0,0.456]
[1727648057765,0.436765,65803.0,65790.0,0.72]
[1727648057766,0.03611252,65799.0,65798.0,0.12]
[1727648057972,0.10584621,65804.0,65802.0,0.075966]
[1727648058166,0.03631177,65803.0,65802.0,0.075966]
[1727648058470,0.03633432,65803.0,65802.0,0.075966]
[1727648059782,0.15633432,65803.0,65796.0,0.3608]
[1727648059980,0.075976,65794.0,65787.0,0.3963]
[1727648060289,0.22584621,65799.0,65794.0,0.075975]
[1727648060475,0.075974,65796.0,65794.0,0.075975]
[1727648060687,0.075979,65791.0,65789.0,0.07598]
[1727648060983,0.075979,65791.0,65790.0,0.07598]
[1727648061481,0.075975,65794.0,65787.0,0.4070396]
[1727648061675,0.1515,65795.0,65788.0,0.075982]
[1727648061880,0.07598,65790.0,65788.0,0.075982]
[1727648062678,0.1515,65795.0,65787.0,0.4070396]
[1727648062983,0.1515,65795.0,65791.0,0.075978]
[1727648062984,0.075976,65794.0,65791.0,0.075978]
[1727648063177,0.075976,65794.0,65792.0,0.075977]
[1727648064470,0.075976,65794.0,65793.0,0.3608]
[1727648068981,0.11191422,65794.0,65793.0,0.3608]
[1727648069372,0.11191597,65794.0,65793.0,0.3608]
[1727648069878,0.11191597,65794.0,65782.0,0.075989]
[1727648069879,0.075986,65785.0,65782.0,0.075989]
[1727648070079,0.075996,65777.0,65772.0,0.3608]
[1727648070386,0.15593997,65785.0,65774.0,0.075997]
[1727648070387,0.11134754,65776.0,65774.0,0.075997]
[1727648070590,0.21708264,65775.0,65774.0,0.075997]
[1727648070881,0.11134854,65775.0,65774.0,0.075997]
[1727648074993,0.03494013,65775.0,65766.0,0.37507272]
[1727648075189,0.076006,65767.0,65766.0,0.37507272]
[1727648075392,0.076006,65767.0,65766.0,0.3608]
[1727648075982,0.0035,65776.0,65766.0,0.3608]
[1727648076292,0.0035,65780.0,65779.0,0.075993]
[1727648076497,0.0035,65789.0,65778.0,0.3608]
[1727648076685,0.10798,65790.0,65785.0,0.3608]
[1727648077080,0.032,65790.0,65785.0,0.3608]
[1727648081090,0.032,65790.0,65785.0,0.436785]
[1727648081290,0.032,65790.0,65785.0,0.3608]
[1727648081497,0.032,65790.0,65786.0,0.075984]
[1727648082994,0.152,65790.0,65786.0,0.075984]
[1727648084594,0.152,65790.0,65788.0,0.075982]
[1727648084907,0.032,65790.0,65788.0,0.075982]
[1727648086302,0.00228054,65792.0,65788.0,0.075982]
[1727648086606,0.00228054,65792.0,65785.0,0.3608]
[1727648086607,0.00228054,65792.0,65789.0,0.075981]
[1727648086794,0.00228054,65792.0,65790.0,0.075979]
[1727648090199,0.00228054,65792.0,65791.0,0.3608]
[1727648091299,0.0383938,65792.0,65791.0,0.3608]
[1727648091501,0.04420973,65792.0,65791.0,0.3608]
[1727648091701,0.08032299,65792.0,65791.0,0.3608]
[1727648092605,0.08032299,65792.0,65791.0,0.436779]
[1727648092811,0.08036733,65792.0,65791.0,0.436779]
[1727648096312,0.03841432,65792.0,65791.0,0.436779]
[1727648097109,0.03841432,65792.0,65787.0,0.01445117]
[1727648097410,0.075995,65777.0,65771.0,0.403002]
[1727648097602,0.59292978,65776.0,65771.0,0.404042]
[1727648097802,0.22579564,65772.0,65771.0,0.076002]
[1727648098105,0.19673175,65772.0,65771.0,0.076002]
[1727648098303,0.19673175,65772.0,65768.0,0.01444397]
[1727648098512,0.10574717,65770.0,65764.0,0.0332]
[1727648098729,0.12,65766.0,65765.0,0.076009]
[1727648100228,0.12,65770.0,65758.0,0.3608]
[1727648100515,0.12,65762.0,65758.0,0.3608]
[1727648101509,0.12,65762.0,65757.0,0.108818]
[1727648101914,0.076009,65765.0,65757.0,0.076018]
[1727648102106,0.076009,65765.0,65758.0,0.0302]
[1727648102513,0.12,65766.0,65758.0,0.106217]
[1727648102716,0.3608,65761.0,65758.0,0.0302]
[1727648104019,0.3608,65762.0,65758.0,0.0302]
[1727648104320,0.3608,65762.0,65758.0,0.106217]
[1727648104516,0.3608,65762.0,65758.0,0.0302]
[1727648104716,0.076015,65760.0,65758.0,0.0302]
[1727648105116,0.076015,65760.0,65755.0,0.0318]
[1727648105329,0.076015,65760.0,65753.0,0.109222]
[1727648105905,0.076015,65760.0,65753.0,0.076022]
[1727648106719,0.076015,65760.0,65759.0,0.055]
[1727648111013,0.076015,65760.0,65749.0,0.108227]
[1727648111014,0.076026,65750.0,65749.0,0.0322]
[1727648111521,0.076032,65745.0,65740.0,0.0319]
[1727648111723,0.076032,65745.0,65741.0,0.032]
[1727648111724,0.196032,65745.0,65741.0,0.032]
[1727648111924,0.196032,65745.0,65742.0,0.076035]
[1727648112219,0.196032,65745.0,65741.0,0.032]
[1727648112220,0.076032,65745.0,65744.0,0.436833]
[1727648112624,0.12,65749.0,65744.0,0.3608]
[1727648112841,0.0035,65754.0,65746.0,0.12]
[1727648113021,0.076022,65754.0,65752.0,0.076024]
[1727648113221,0.076022,65754.0,65744.0,0.3608]
[1727648113222,0.076022,65754.0,65753.0,0.076023]
[1727648114627,0.076024,65752.0,65751.0,0.0322]
[1727648115525,0.076024,65752.0,65751.0,0.108225]
[1727648116221,0.3608,65760.0,65751.0,0.1522]
[1727648116564,0.0041,65782.0,65751.0,0.1522]
[1727648116565,0.076013,65762.0,65757.0,0.076018]
[1727648116731,0.076006,65768.0,65762.0,0.12]
[1727648116924,0.076006,65768.0,65762.0,0.196012]
[1727648117119,0.076006,65768.0,65763.0,0.3608]
[1727648117529,0.0035,65769.0,65763.0,0.3608]
[1727648119435,0.0035,65769.0,65763.0,0.436811]
[1727648119626,0.195999,65774.0,65763.0,0.436811]
[1727648119834,0.195999,65774.0,65763.0,0.3608]
[1727648120431,0.195999,65774.0,65762.0,0.01434643]
[1727648120731,0.195999,65774.0,65768.0,0.076005]
[1727648120732,0.12,65774.0,65768.0,0.076005]
[1727648121129,0.12,65774.0,65764.0,0.3608]
[1727648121327,0.0361,65780.0,65773.0,0.12]
[1727648121328,0.10574717,65779.0,65773.0,0.12]
[1727648121637,0.3616,65783.0,65778.0,0.12]
[1727648121834,0.3608,65783.0,65778.0,0.12]
[1727648122028,0.18610817,65790.0,65782.0,0.3608]
[1727648122229,0.12,65788.0,65782.0,0.3608]
[1727648122434,0.03401421,65787.0,65782.0,0.3608]
[1727648122737,0.03401421,65786.0,65782.0,0.3608]
[1727648123033,0.03401421,65785.0,65782.0,0.3608]
[1727648123239,0.12,65788.0,65782.0,0.3608]
[1727648123429,0.03366469,65787.0,65782.0,0.3608]
[1727648123634,0.03366469,65786.0,65782.0,0.3608]
[1727648123836,0.075981,65790.0,65782.0,0.3608]
[1727648124034,0.03368061,65789.0,65782.0,0.436788]
[1727648124230,0.03368061,65788.0,65782.0,0.436788]
[1727648124426,0.0319,65791.0,65782.0,0.3608]
[1727648124427,0.03368061,65787.0,65782.0,0.3608]
[1727648124735,0.0319,65791.0,65785.0,0.075985]
[1727648124931,0.03381349,65790.0,65785.0,0.075985]
[1727648125135,0.03381349,65789.0,65785.0,0.075985]
[1727648125337,0.03381349,65788.0,65785.0,0.075985]
[1727648125543,0.03381349,65787.0,65785.0,0.075985]
[1727648125840,0.10574717,65790.0,65785.0,0.075985]
[1727648125841,0.03381349,65786.0,65785.0,0.075985]
[1727648126351,0.03381349,65786.0,65782.0,0.3608]
[1727648126531,0.12,65783.0,65782.0,0.3608]
[1727648126837,0.15381349,65783.0,65782.0,0.3608]
[1727648128228,0.12,65783.0,65782.0,0.3608]
[1727648130544,0.12,65783.0,65781.0,0.075989]
[1727648135038,0.12,65783.0,65782.0,0.075989]
[1727648135745,0.4808,65787.0,65783.0,0.075987]
[1727648136150,0.12,65787.0,65783.0,0.075987]
[1727648136445,0.4808,65787.0,65777.0,0.3608]
[1727648136642,0.4808,65787.0,65782.0,0.075989]
[1727648136840,0.12,65787.0,65782.0,0.075989]
[1727648137346,0.436782,65788.0,65769.0,0.3643]
[1727648137347,0.12,65783.0,65769.0,0.3643]
[1727648137535,0.72248,65788.0,65769.0,0.37501422]
[1727648137536,0.12,65770.0,65769.0,0.37501422]
[1727648137744,0.12,65770.0,65769.0,0.45101822]
[1727648139039,0.12,65770.0,65769.0,0.09021822]
[1727648139440,0.12,65770.0,65763.0,0.3608]
[1727648139640,0.3608,65772.0,65763.0,0.3608]
[1727648139641,0.12,65765.0,65763.0,0.3608]
[1727648140041,0.12,65765.0,65764.0,0.07829055]
[1727648141043,0.12,65765.0,65764.0,0.00228055]
[1727648141247,0.196009,65765.0,65764.0,0.00228055]
[1727648141852,1.316869,65765.0,65751.0,0.0035]
[1727648142151,1.316869,65765.0,65748.0,0.076028]
[1727648142152,0.3608,65753.0,65748.0,0.076028]
[1727648142372,0.12,65750.0,65748.0,0.076028]
[1727648142553,0.076029,65748.0,65743.0,0.0928941]
[1727648142885,0.4808,65745.0,65743.0,0.07831515]
[1727648143045,0.12,65745.0,65743.0,0.07831515]
[1727648143562,0.196032,65745.0,65743.0,0.00228115]
[1727648146054,0.12,65745.0,65733.0,0.0035]
[1727648146255,0.3608,65746.0,65728.0,0.3643]
[1727648146256,0.12,65738.0,65728.0,0.3643]
[1727648146451,0.12,65738.0,65733.0,0.076045]
[1727648146755,0.12,65738.0,65734.0,0.076044]
[1727648147451,0.12,65738.0,65728.0,0.375445]
[1727648147452,0.12,65738.0,65736.0,0.076041]
[1727648148048,0.12,65738.0,65735.0,0.3608]
[1727648148244,0.076042,65736.0,65735.0,0.3608]
[1727648149446,0.12,65738.0,65735.0,0.3608]
[1727648149659,0.076041,65737.0,65735.0,0.3608]
[1727648150150,0.076041,65737.0,65735.0,0.436843]
[1727648150356,0.076041,65737.0,65728.0,0.014645]
[1727648150357,0.07605,65730.0,65728.0,0.3608]
[1727648150543,0.19605,65729.0,65728.0,0.3608]
[1727648152155,0.12,65729.0,65728.0,0.3608]
[1727648152459,0.12,65729.0,65728.0,0.436852]
[1727648152953,0.076048,65731.0,65728.0,0.436852]
[1727648153257,0.0035,65739.0,65735.0,0.076043]
[1727648153455,0.076039,65739.0,65735.0,0.076043]
[1727648153953,0.076044,65735.0,65730.0,0.076049]
[1727648154148,0.12,65734.0,65728.0,0.3608]
[1727648154350,0.12,65734.0,65731.0,0.076048]
[1727648154548,0.12,65734.0,65733.0,0.076046]
[1727648155161,0.12,65734.0,65728.0,0.3608]
[1727648155455,0.3608,65740.0,65728.0,0.3608]
[1727648155456,0.12,65729.0,65728.0,0.3608]
[1727648155757,0.19605,65729.0,65728.0,0.3608]
[1727648156861,0.07605,65729.0,65728.0,0.3608]
[1727648157748,0.076057,65723.0,65722.0,0.3608]
[1727648157943,0.076057,65723.0,65718.0,0.00228237]
[1727648157944,0.076062,65719.0,65718.0,0.00228237]
[1727648158145,0.15800551,65719.0,65718.0,0.00228237]
[1727648160252,0.12,65723.0,65718.0,0.00228237]
[1727648160554,0.3608,65726.0,65718.0,0.00228237]
[1727648160555,0.12,65719.0,65718.0,0.00228237]
[1727648161556,0.12,65719.0,65718.0,0.07834537]
[1727648161759,0.12,65723.0,65721.0,0.07606]
[1727648161946,0.3608,65726.0,65718.0,0.00228237]
[1727648162146,0.0324,65728.0,65721.0,0.3608]
[1727648162351,0.12,65723.0,65719.0,0.106562]
[1727648162552,0.12,65723.0,65719.0,0.076062]
[1727648163262,0.12,65723.0,65721.0,0.076059]
[1727648163448,0.12,65723.0,65718.0,0.00228237]
[1727648163863,0.436855,65726.0,65719.0,0.076062]
[1727648164157,0.12,65723.0,65718.0,0.00228237]
[1727648164367,0.196062,65719.0,65718.0,0.00228237]
[1727648168656,0.196062,65719.0,65708.0,0.36196]
[1727648168657,0.076074,65709.0,65708.0,0.3608]
[1727648168955,0.196074,65709.0,65708.0,0.3608]
[1727648169459,0.12,65709.0,65708.0,0.3608]
[1727648169761,0.12,65709.0,65703.0,0.04551131]
[1727648169965,0.196079,65704.0,65701.0,0.12159331]
[1727648170262,0.196079,65704.0,65702.0,0.076081]
[1727648170464,0.196079,65704.0,65698.0,0.09169836]
[1727648170465,0.12,65704.0,65699.0,0.4529433]
[1727648170663,0.12,65704.0,65703.0,0.07608]
[1727648171669,0.3936,65708.0,65701.0,0.04551131]
[1727648171670,0.12,65707.0,65701.0,0.04551131]
[1727648171983,0.0008,65708.0,65706.0,0.436876]
[1727648172265,0.076073,65710.0,65706.0,0.3608]
[1727648172466,0.076073,65710.0,65707.0,0.076076]
[1727648172655,0.12,65708.0,65707.0,0.076076]
[1727648173667,1.53736,65708.0,65700.0,0.3608]
[1727648173869,1.53736,65708.0,65693.0,0.3643]
[1727648173870,0.076091,65694.0,65693.0,0.00112]
[1727648174073,0.076091,65694.0,65690.0,0.05129425]
[1727648174074,0.12,65694.0,65690.0,0.00228294]
[1727648174369,0.4808,65694.0,65690.0,0.00228294]
[1727648174553,0.076092,65693.0,65690.0,0.00228294]
[1727648174958,0.48168,65694.0,65690.0,0.00228294]
[1727648175170,0.076094,65691.0,65690.0,0.00228294]
[1727648175960,0.0332,65693.0,65683.0,0.04551131]
[1727648175961,0.076097,65689.0,65683.0,0.04551131]
[1727648176161,0.12,65688.0,65684.0,0.04551131]
[1727648176470,0.12,65688.0,65687.0,0.076099]
[1727648176970,0.12,65688.0,65684.0,0.04551131]
[1727648177372,0.12,65688.0,65684.0,0.12161331]
[1727648177556,0.12,65688.0,65686.0,0.0761]
[1727648177959,0.12,65688.0,65687.0,0.076099]
[1727648179064,0.12,65688.0,65685.0,0.04551131]
[1727648179268,0.12,65688.0,65686.0,0.0761]
[1727648179455,0.12,65688.0,65687.0,0.076099]
[1727648179657,0.12,65688.0,65684.0,0.12161331]
[1727648179860,0.12,65688.0,65687.0,0.076099]
[1727648180060,0.12,65688.0,65672.0,0.07529095]
[1727648180061,0.12,65688.0,65680.0,0.04551131]
[1727648180412,0.12,65678.0,65674.0,0.12162431]
[1727648180562,0.076108,65679.0,65674.0,0.076113]
[1727648180563,0.12,65675.0,65674.0,0.076113]
[1727648180964,0.12,65675.0,65670.0,0.04779545]
[1727648181260,0.196118,65671.0,65670.0,0.00228414]
[1727648181460,0.3608,65675.0,65670.0,0.00228414]
[1727648181461,0.3608,65675.0,65670.0,0.00268414]
[1727648181668,0.4808,65675.0,65674.0,0.06047093]
[1727648181859,0.4808,65675.0,65673.0,0.06046906]
[1727648182060,0.4808,65675.0,65674.0,0.06046906]
[1727648182468,0.4808,65675.0,65673.0,0.06046906]
[1727648182674,0.4808,65675.0,65672.0,0.06046906]
[1727648183176,0.12,65675.0,65673.0,0.06046906]
[1727648184773,0.12,65675.0,65673.0,0.13658406]
[1727648185364,0.12,65675.0,65674.0,0.06046906]
[1727648185675,0.12,65675.0,65674.0,0.076114]
[1727648186476,0.12,65675.0,65674.0,0.13658306]
[1727648186866,0.12,65679.0,65677.0,0.07611]
[1727648187088,0.12,65679.0,65675.0,0.06046906]
[1727648187270,0.12,65679.0,65670.0,0.0782725]
[1727648187271,0.45676,65678.0,65670.0,0.00268414]
[1727648187471,0.4808,65671.0,65659.0,0.07908836]